fUST/lending_fUST_20251119
["ID","MTS","AMOUNT","RATE_DAILY","PERIOD"]
[394382636,1763514315638,2152.744812,0.00039765,120]
[394382637,1763514315675,-1751.0,0.00014409,2]
[394382638,1763514315698,-59.24655718,0.0001441,2]
[394382639,1763514315719,-158.11418998,0.00014458,2]
[394382640,1763514315742,-122.5844537,0.00014558,2]
[394382641,1763514315857,431.314242,0.00039765,120]
[394382642,1763514315892,2152.744812,0.00039765,120]
[394382643,1763514316148,431.314242,0.00039765,120]
[394382644,1763514316502,431.314242,0.00039765,120]
[394382645,1763514316795,431.314242,0.00039765,120]
[394382646,1763514317074,431.314242,0.00039765,120]
[394382647,1763514317394,431.314242,0.00039765,120]
[394382648,1763514317684,431.314242,0.00039765,120]
[394382649,1763514317974,431.314242,0.00039765,120]
[394382650,1763514318434,431.314242,0.00039765,120]
[394382651,1763514318617,-237.59929909,0.00014558,2]
[394382652,1763514318738,431.314242,0.00039765,120]
[394382653,1763514318860,557.142008,0.00039765,120]
[394382654,1763514319030,431.314242,0.00039765,120]
[394382655,1763514319151,557.142008,0.00039765,120]
[394382656,1763514319325,431.314241,0.00039765,120]
[394382657,1763514319455,557.142008,0.00039765,120]
[394382658,1763514319762,557.142008,0.00039765,120]
[394382659,1763514320068,557.142008,0.00039765,120]
[394382660,1763514320454,557.142008,0.00039765,120]
[394382661,1763514320736,557.142008,0.00039765,120]
[394382662,1763514321022,557.142008,0.00039765,120]
[394382663,1763514321298,557.142008,0.00039765,120]
[394382664,1763514321611,557.142008,0.00039765,120]
[394382665,1763514321947,557.142008,0.00039765,120]
[394382666,1763514322221,557.142008,0.00039765,120]
[394382667,1763514322586,557.142008,0.00039765,120]
[394382668,1763514322902,557.142008,0.00039765,120]
[394382669,1763514323200,557.142008,0.00039765,120]
[394382670,1763514323395,227.0,0.000182,30]
[394382671,1763514323512,557.142008,0.00039765,120]
[394382672,1763514323825,557.142008,0.00039765,120]
[394382673,1763514324393,557.142008,0.00039765,120]
[394382674,1763514324793,557.142008,0.00039765,120]
[394382675,1763514325209,557.142006,0.00039765,120]
[394382676,1763514327543,151.0,0.00039765,120]
[394382677,1763514327861,151.0,0.00039765,120]
[394382678,1763514328146,151.0,0.00039765,120]
[394382679,1763514328424,151.0,0.00039765,120]
[394382680,1763514328721,151.0,0.00039765,120]
[394382681,1763514329010,151.0,0.00039765,120]
[394382682,1763514329306,151.0,0.00039765,120]
[394382683,1763514329602,151.0,0.00039765,120]
[394382684,1763514330022,151.0,0.00039765,120]
[394382685,1763514330325,151.0,0.00039765,120]
[394382686,1763514330649,151.0,0.00039765,120]
[394382687,1763514330945,151.0,0.00039765,120]
[394382688,1763514331277,241.980323,0.00039765,120]
[394382689,1763514337474,151.0,0.00039765,120]
[394382690,1763514337831,151.0,0.00039765,120]
[394382691,1763514337895,584.850611,0.00039765,120]
[394382692,1763514338152,151.0,0.00039765,120]
[394382693,1763514338194,584.850611,0.00039765,120]
[394382694,1763514338445,151.0,0.00039765,120]
[394382695,1763514338481,584.850611,0.00039765,120]
[394382696,1763514338773,151.0,0.00039765,120]
[394382697,1763514338811,584.850611,0.00039765,120]
[394382698,1763514339083,151.0,0.00039765,120]
[394382699,1763514339117,584.850611,0.00039765,120]
[394382700,1763514339377,151.0,0.00039765,120]
[394382701,1763514339411,584.850611,0.00039765,120]
[394382702,1763514339674,151.0,0.00039765,120]
[394382703,1763514339709,584.850611,0.00039765,120]
[394382704,1763514339980,151.0,0.00039765,120]
[394382705,1763514340015,584.850611,0.00039765,120]
[394382706,1763514340307,584.850611,0.00039765,120]
[394382707,1763514340341,151.0,0.00039765,120]
[394382708,1763514340608,584.850611,0.00039765,120]
[394382709,1763514340644,151.0,0.00039765,120]
[394382710,1763514340928,584.850611,0.00039765,120]
[394382711,1763514340975,151.0,0.00039765,120]
[394382712,1763514341240,584.850611,0.00039765,120]
[394382713,1763514341276,151.0,0.00039765,120]
[394382714,1763514341530,584.850611,0.00039765,120]
[394382715,1763514341565,151.0,0.00039765,120]
[394382716,1763514341914,166.497012,0.00039765,120]
[394382717,1763514341949,584.850611,0.00039765,120]
[394382718,1763514342224,584.850611,0.00039765,120]
[394382719,1763514342531,584.850611,0.00039765,120]
[394382720,1763514342881,584.850611,0.00039765,120]
[394382721,1763514343212,584.850611,0.00039765,120]
[394382722,1763514343552,584.850611,0.00039765,120]
[394382723,1763514343858,584.850602,0.00039765,120]
[394382724,1763514354481,265.506625,0.00039765,120]
[394382725,1763514354764,265.506625,0.00039765,120]
[394382726,1763514355053,265.506625,0.00039765,120]
[394382727,1763514355389,265.506625,0.00039765,120]
[394382728,1763514355672,265.506625,0.00039765,120]
[394382729,1763514355949,265.506625,0.00039765,120]
[394382730,1763514356229,265.506625,0.00039765,120]
[394382731,1763514356526,265.506625,0.00039765,120]
[394382732,1763514356861,265.506625,0.00039765,120]
[394382733,1763514357168,265.506625,0.00039765,120]
[394382734,1763514357473,265.506625,0.00039765,120]
[394382735,1763514357749,265.506625,0.00039765,120]
[394382736,1763514358052,265.506625,0.00039765,120]
[394382737,1763514358367,265.506625,0.00039765,120]
[394382738,1763514358658,265.506625,0.00039765,120]
[394382739,1763514358961,265.506625,0.00039765,120]
[394382740,1763514359269,265.506625,0.00039765,120]
[394382741,1763514359558,265.506625,0.00039765,120]
[394382742,1763514359847,265.506625,0.00039765,120]
[394382743,1763514360137,265.50663,0.00039765,120]
[394382744,1763514371226,931.437275,0.00039765,120]
[394382745,1763514371508,931.437275,0.00039765,120]
[394382746,1763514371812,931.437275,0.00039765,120]
[394382747,1763514372109,931.437275,0.00039765,120]
[394382748,1763514372402,931.437275,0.00039765,120]
[394382749,1763514372701,931.437275,0.00039765,120]
[394382750,1763514372868,151.0,0.00039765,120]
[394382751,1763514372978,931.437275,0.00039765,120]
[394382752,1763514373160,151.0,0.00039765,120]
[394382753,1763514373253,931.437275,0.00039765,120]
[394382754,1763514373439,151.0,0.00039765,120]
[394382755,1763514373535,931.437275,0.00039765,120]
[394382756,1763514373721,151.0,0.00039765,120]
[394382757,1763514373964,931.437275,0.00039765,120]
[394382758,1763514374011,151.0,0.00039765,120]
[394382759,1763514374135,931.437275,0.00039765,120]
[394382760,1763514374293,151.0,0.00039765,120]
[394382761,1763514374436,931.437275,0.00039765,120]
[394382762,1763514374577,151.0,0.00039765,120]
[394382763,1763514374719,931.437275,0.00039765,120]
[394382764,1763514374870,151.0,0.00039765,120]
[394382765,1763514375025,931.437275,0.00039765,120]
[394382766,1763514375153,151.0,0.00039765,120]
[394382767,1763514375438,151.0,0.00039765,120]
[394382768,1763514375619,931.437275,0.00039765,120]
[394382769,1763514375743,200.214125,0.00039765,120]
[394382770,1763514375931,931.437275,0.00039765,120]
[394382771,1763514376391,931.437275,0.00039765,120]
[394382772,1763514376682,931.437275,0.00039765,120]
[394382773,1763514376983,931.437275,0.00039765,120]
[394382774,1763514377308,931.437267,0.00039765,120]
[394382775,1763514391982,239.5196386,0.00014261,2]
[394382776,1763514397127,917.22462124,0.0001598,3]
[394382777,1763514399218,677.15571236,0.00016067,3]
[394382778,1763514409467,365.06206601,0.00014412,2]
[394382779,1763514429972,203.841719,0.00039765,120]
[394382780,1763514432854,712.354252,0.00039765,120]
[394382781,1763514433160,712.354252,0.00039765,120]
[394382782,1763514433491,712.354252,0.00039765,120]
[394382783,1763514433780,712.354252,0.00039765,120]
[394382784,1763514434085,712.354252,0.00039765,120]
[394382785,1763514434464,712.354252,0.00039765,120]
[394382786,1763514434751,712.354252,0.00039765,120]
[394382787,1763514435040,712.354252,0.00039765,120]
[394382788,1763514435376,712.354252,0.00039765,120]
[394382789,1763514435659,712.354252,0.00039765,120]
[394382790,1763514435957,712.354252,0.00039765,120]
[394382791,1763514436382,712.354252,0.00039765,120]
[394382792,1763514436685,712.354252,0.00039765,120]
[394382793,1763514436979,712.354252,0.00039765,120]
[394382794,1763514437272,712.354252,0.00039765,120]
[394382795,1763514437602,712.354252,0.00039765,120]
[394382796,1763514437905,712.354252,0.00039765,120]
[394382797,1763514438447,712.354252,0.00039765,120]
[394382798,1763514438502,712.354252,0.00039765,120]
[394382799,1763514438827,712.354262,0.00039765,120]
[394382800,1763514440350,414.604088,0.00039765,120]
[394382801,1763514440657,414.604088,0.00039765,120]
[394382802,1763514441055,414.604088,0.00039765,120]
[394382803,1763514441357,414.604088,0.00039765,120]
[394382804,1763514441659,414.604088,0.00039765,120]
[394382805,1763514441988,414.604088,0.00039765,120]
[394382806,1763514442342,414.604088,0.00039765,120]
[394382807,1763514442644,414.604088,0.00039765,120]
[394382808,1763514442986,414.604088,0.00039765,120]
[394382809,1763514443324,414.604088,0.00039765,120]
[394382810,1763514443658,414.604088,0.00039765,120]
[394382811,1763514443974,414.604088,0.00039765,120]
[394382812,1763514444300,414.604088,0.00039765,120]
[394382813,1763514445073,414.604088,0.00039765,120]
[394382814,1763514445395,414.604088,0.00039765,120]
[394382815,1763514445689,414.604088,0.00039765,120]
[394382816,1763514446008,414.604088,0.00039765,120]
[394382817,1763514446305,414.604088,0.00039765,120]
[394382818,1763514446636,414.604088,0.00039765,120]
[394382819,1763514446984,414.604084,0.00039765,120]
[394382820,1763514449510,2699.833868,0.00039765,120]
[394382821,1763514449686,2699.833868,0.00039765,120]
[394382822,1763514449974,2699.833868,0.00039765,120]
[394382823,1763514450272,2699.833868,0.00039765,120]
[394382824,1763514450554,2699.833868,0.00039765,120]
[394382825,1763514450836,2699.833868,0.00039765,120]
[394382826,1763514451087,293.790423,0.00039765,120]
[394382827,1763514451115,2699.833868,0.00039765,120]
[394382828,1763514451404,2699.833868,0.00039765,120]
[394382829,1763514451435,293.790423,0.00039765,120]
[394382830,1763514451683,2699.833868,0.00039765,120]
[394382831,1763514451725,293.790423,0.00039765,120]
[394382832,1763514451970,2699.833868,0.00039765,120]
[394382833,1763514452008,293.790423,0.00039765,120]
[394382834,1763514452246,2699.833868,0.00039765,120]
[394382835,1763514452300,293.790423,0.00039765,120]
[394382836,1763514452910,293.790423,0.00039765,120]
[394382837,1763514453204,293.790423,0.00039765,120]
[394382838,1763514453233,2699.833868,0.00039765,120]
[394382839,1763514453505,293.790423,0.00039765,120]
[394382840,1763514453540,2699.833868,0.00039765,120]
[394382841,1763514453807,293.790423,0.00039765,120]
[394382842,1763514453838,2699.833868,0.00039765,120]
[394382843,1763514454096,2699.833868,0.00039765,120]
[394382844,1763514454150,293.790423,0.00039765,120]
[394382845,1763514454188,250.066685,0.00039765,120]
[394382846,1763514454380,2699.833868,0.00039765,120]
[394382847,1763514454412,293.790423,0.00039765,120]
[394382848,1763514454450,250.066685,0.00039765,120]
[394382849,1763514454653,2699.833868,0.00039765,120]
[394382850,1763514454697,293.790423,0.00039765,120]
[394382851,1763514454731,250.066685,0.00039765,120]
[394382852,1763514454941,2699.833868,0.00039765,120]
[394382853,1763514454980,293.790423,0.00039765,120]
[394382854,1763514455016,250.066685,0.00039765,120]
[394382855,1763514455237,2699.833868,0.00039765,120]
[394382856,1763514455291,293.790423,0.00039765,120]
[394382857,1763514455319,250.066685,0.00039765,120]
[394382858,1763514455532,2699.83386241,0.00039765,120]
[394382859,1763514455593,250.066685,0.00039765,120]
[394382860,1763514455623,293.790423,0.00039765,120]
[394382861,1763514456005,250.066685,0.00039765,120]
[394382862,1763514456038,293.790423,0.00039765,120]
[394382863,1763514456199,250.066685,0.00039765,120]
[394382864,1763514456231,293.790423,0.00039765,120]
[394382865,1763514456556,293.790423,0.00039765,120]
[394382866,1763514456796,250.066685,0.00039765,120]
[394382867,1763514456857,293.790423,0.00039765,120]
[394382868,1763514457081,250.066685,0.00039765,120]
[394382869,1763514457138,293.790425,0.00039765,120]
[394382870,1763514457376,250.066685,0.00039765,120]
[394382871,1763514457667,250.066685,0.00039765,120]
[394382872,1763514457994,250.066685,0.00039765,120]
[394382873,1763514458278,250.066685,0.00039765,120]
[394382874,1763514458587,250.066685,0.00039765,120]
[394382875,1763514459020,250.066685,0.00039765,120]
[394382876,1763514459328,250.066685,0.00039765,120]
[394382877,1763514459615,250.066685,0.00039765,120]
[394382878,1763514459896,250.066685,0.00039765,120]
[394382879,1763514460191,250.066677,0.00039765,120]
[394382880,1763514466417,151.0,0.00039765,120]
[394382881,1763514466705,151.0,0.00039765,120]
[394382882,1763514466994,151.0,0.00039765,120]
[394382883,1763514467285,176.52353,0.00039765,120]
[394382884,1763514483682,157.66,0.00014581,2]
[394382885,1763514483977,157.65,0.00014581,2]
[394382886,1763514486765,291.696761,0.00039765,120]
[394382887,1763514509475,744.167509,0.00039765,120]
[394382888,1763514509767,744.167509,0.00039765,120]
[394382889,1763514510112,744.167509,0.00039765,120]
[394382890,1763514510373,744.167509,0.00039765,120]
[394382891,1763514510667,744.167509,0.00039765,120]
[394382892,1763514510955,744.167509,0.00039765,120]
[394382893,1763514511262,744.167509,0.00039765,120]
[394382894,1763514511553,744.167509,0.00039765,120]
[394382895,1763514513007,744.167509,0.00039765,120]
[394382896,1763514513603,744.167509,0.00039765,120]
[394382897,1763514513682,744.167509,0.00039765,120]
[394382898,1763514513968,744.167509,0.00039765,120]
[394382899,1763514514165,744.167509,0.00039765,120]
[394382900,1763514514318,744.167509,0.00039765,120]
[394382901,1763514514412,744.167509,0.00039765,120]
[394382902,1763514514466,744.167509,0.00039765,120]
[394382903,1763514514573,744.167509,0.00039765,120]
[394382904,1763514514868,744.167509,0.00039765,120]
[394382905,1763514516044,744.167509,0.00039765,120]
[394382906,1763514516345,744.167502,0.00039765,120]
[394382907,1763514535967,1635.67677396,0.00014425,2]
[394382908,1763514538630,745.99012415,0.0001598,3]
[394382909,1763514540477,3631.002299,0.00039765,28]
[394382910,1763514540777,3631.002299,0.00039765,28]
[394382911,1763514541069,3631.002299,0.00039765,28]
[394382912,1763514541379,3631.002299,0.00039765,28]
[394382913,1763514541670,3631.002299,0.00039765,28]
[394382914,1763514541961,3631.002299,0.00039765,28]
[394382915,1763514542245,3631.002299,0.00039765,28]
[394382916,1763514542564,3631.002299,0.00039765,28]
[394382917,1763514542892,3631.002299,0.00039765,28]
[394382918,1763514543187,3631.002299,0.00039765,28]
[394382919,1763514543479,3631.002299,0.00039765,28]
[394382920,1763514543761,3631.002299,0.00039765,28]
[394382921,1763514544044,3631.002299,0.00039765,28]
[394382922,1763514544339,3631.002299,0.00039765,28]
[394382923,1763514544820,3631.002299,0.00039765,28]
[394382924,1763514545111,3631.002299,0.00039765,28]
[394382925,1763514545508,3631.002299,0.00039765,28]
[394382926,1763514545682,3631.002299,0.00039765,28]
[394382927,1763514545965,3631.002299,0.00039765,28]
[394382928,1763514546254,3631.002308,0.00039765,28]
[394382929,1763514548650,505.37056382,0.00039765,20]
[394382930,1763514568114,-158.11418998,0.00014606,2]
[394382931,1763514568134,-235.08035842,0.00014625,2]
[394382932,1763514568153,-1676.74067093,0.00014644,2]
[394382933,1763514568173,-158.11418998,0.00014754,2]
[394382934,1763514568192,-300.0,0.0001485,2]
[394382935,1763514568211,-1200.0,0.00014851,2]
[394382936,1763514568231,-500.0,0.00014851,2]
[394382937,1763514568254,-382.23898206,0.00014851,2]
[394382938,1763514568277,-500.0,0.00014851,2]
[394382939,1763514568299,-248.06692112,0.00014851,2]
[394382940,1763514588846,152.73519095,0.00013635,7]
[394383056,1763514632489,-300.0,0.00014803,2]
[394383058,1763514632500,-569.95588039,0.00014803,2]
[394383152,1763514637725,-630.04411961,0.00014803,2]
[394383154,1763514637735,-500.0,0.00014803,2]
[394383157,1763514637745,-500.0,0.00014803,2]
[394383159,1763514637754,-500.0,0.00014803,2]
[394383161,1763514637763,-500.0,0.00014803,2]
[394383163,1763514637772,-500.0,0.00014803,2]
[394383165,1763514637781,-500.0,0.00014803,2]
[394383167,1763514637791,-500.0,0.00014803,2]
[394383169,1763514637800,-500.0,0.00014803,2]
[394383171,1763514637810,-208.5251118,0.00014803,2]
[394383173,1763514637818,-500.0,0.00014803,2]
[394383175,1763514637828,-500.0,0.00014803,2]
[394383176,1763514637837,-500.0,0.00014803,2]
[394383178,1763514637847,-500.0,0.00014803,2]
[394383179,1763514637856,-500.0,0.00014803,2]
[394383180,1763514637865,-500.0,0.00014803,2]
[394383181,1763514637874,-500.0,0.00014803,2]
[394383182,1763514637884,-500.0,0.00014803,2]
[394383183,1763514637893,-500.0,0.00014803,2]
[394383184,1763514637903,-500.0,0.00014803,2]
[394383185,1763514637912,-500.0,0.00014803,2]
[394383186,1763514637921,-500.0,0.00014803,2]
[394383187,1763514637931,-500.0,0.00014803,2]
[394383188,1763514637940,-500.0,0.00014803,2]
[394383189,1763514637949,-500.0,0.00014803,2]
[394383190,1763514637959,-500.0,0.00014803,2]
[394383191,1763514637968,-511.73977099,0.00014803,2]
[394383192,1763514637978,-500.0,0.00014803,2]
[394383193,1763514637987,-500.0,0.00014803,2]
[394383194,1763514637996,-500.0,0.00014803,2]
[394383195,1763514638006,-45325.0489481,0.00014804,2]
[394383196,1763514638016,-209.40437684,0.00014845,2]
[394383197,1763514638025,-151.0,0.00014845,2]
[394383198,1763514638035,-151.0,0.00014845,2]
[394383199,1763514638044,-151.0,0.00014845,2]
[394383200,1763514638054,-151.0,0.00014845,2]
[394383201,1763514638063,-151.0,0.00014845,2]
[394383202,1763514638073,-151.0,0.00014845,2]
[394383203,1763514638082,-151.0,0.00014845,2]
[394383204,1763514638092,-231.06163583,0.00014845,2]
[394383205,1763514638101,-187.23962957,0.0001485,2]
[394383206,1763514638111,-50000.0,0.00014851,2]
[394383207,1763514638120,-500.0,0.00014853,2]
[394383208,1763514638129,-531.288,0.00014854,2]
[394383209,1763514638139,-349.36176581,0.00014855,2]
[394383210,1763514638149,-500.0,0.00014855,2]
[394383211,1763514638158,-500.0,0.00014855,2]
[394383212,1763514638167,-500.0,0.00014855,2]
[394383213,1763514638176,-22890.49821004,0.00014857,2]
[394383214,1763514638190,-500.0,0.000149,2]
[394383215,1763514638200,-500.0,0.000149,2]
[394383216,1763514638209,-392.58132975,0.000149,2]
[394383217,1763514638221,-502.24962682,0.000149,2]
[394383218,1763514638230,-522.0,0.000149,2]
[394383219,1763514638239,-1193.0,0.000149,2]
[394383220,1763514638249,-154.09337941,0.000149,2]
[394383221,1763514638259,-945.0,0.000149,2]
[394383222,1763514638268,-606.0,0.000149,2]
[394383223,1763514638277,-606.0,0.000149,2]
[394383224,1763514638286,-153.60225874,0.000149,2]
[394383225,1763514638295,-154.34352779,0.000149,2]
[394383226,1763514638304,-151.0,0.000149,2]
[394383227,1763514638314,-500.0,0.000149,2]
[394383228,1763514638323,-508.45259022,0.000149,2]
[394383229,1763514638332,-500.0,0.000149,2]
[394383230,1763514638342,-500.0,0.000149,2]
[394383231,1763514638351,-500.0,0.000149,2]
[394383232,1763514638361,-500.0,0.000149,2]
[394383233,1763514638370,-500.0,0.000149,2]
[394383234,1763514638378,-500.96930845,0.000149,2]
[394383235,1763514638388,-500.0,0.000149,2]
[394383236,1763514638397,-522.0,0.00014927,2]
[394383237,1763514638407,-1193.0,0.00014927,2]
[394383238,1763514638419,-945.0,0.00014927,2]
[394383239,1763514638429,-606.0,0.00014927,2]
[394383240,1763514638438,-606.0,0.00014927,2]
[394383241,1763514638448,-194.84955325,0.00014927,2]
[394383242,1763514638458,-500.0,0.00014927,2]
[394383243,1763514638467,-522.0,0.00014955,2]
[394383244,1763514638476,-1193.0,0.00014955,2]
[394383245,1763514638486,-945.0,0.00014955,2]
[394383246,1763514638497,-606.0,0.00014955,2]
[394383247,1763514638506,-606.0,0.00014955,2]
[394383248,1763514638515,-163.16747433,0.00014955,2]
[394383249,1763514638525,-522.0,0.00014982,2]
[394383250,1763514638534,-1193.0,0.00014982,2]
[394383251,1763514638543,-945.0,0.00014982,2]
[394383252,1763514638552,-606.0,0.00014982,2]
[394383253,1763514638562,-606.0,0.00014982,2]
[394383254,1763514638571,-500.0,0.00014988,2]
[394383255,1763514638580,-500.0,0.00014988,2]
[394383256,1763514638589,-500.0,0.00015,2]
[394383257,1763514638598,-500.0,0.00015,2]
[394383258,1763514638608,-522.0,0.0001501,2]
[394383259,1763514638617,-1193.0,0.0001501,2]
[394383260,1763514638626,-945.0,0.0001501,2]
[394383261,1763514638635,-606.0,0.0001501,2]
[394383262,1763514638645,-606.0,0.0001501,2]
[394383263,1763514638658,-522.0,0.00015037,2]
[394383264,1763514638667,-1193.0,0.00015037,2]
[394383265,1763514638677,-945.0,0.00015037,2]
[394383266,1763514638686,-606.0,0.00015037,2]
[394383267,1763514638695,-606.0,0.00015037,2]
[394383268,1763514638705,-522.0,0.00015064,2]
[394383269,1763514638714,-1193.0,0.00015064,2]
[394383270,1763514638723,-945.0,0.00015064,2]
[394383271,1763514638732,-606.0,0.00015064,2]
[394383272,1763514638742,-606.0,0.00015064,2]
[394383273,1763514638751,-800.0,0.00015068,2]
[394383274,1763514638760,-500.0,0.00015075,2]
[394383275,1763514638770,-506.45381358,0.00015075,2]
[394383276,1763514638780,-500.0,0.00015075,2]
[394383277,1763514638789,-500.0,0.00015075,2]
[394383278,1763514638799,-500.0,0.00015075,2]
[394383279,1763514638808,-500.9277856,0.00015075,2]
[394383280,1763514638818,-500.0,0.00015075,2]
[394383281,1763514638827,-500.0,0.00015075,2]
[394383282,1763514638837,-500.0,0.00015075,2]
[394383283,1763514638847,-534.12852606,0.00015075,2]
[394383284,1763514638857,-522.0,0.00015092,2]
[394383285,1763514638866,-1193.0,0.00015092,2]
[394383286,1763514638876,-945.0,0.00015092,2]
[394383287,1763514638884,-606.0,0.00015092,2]
[394383288,1763514638894,-606.0,0.00015092,2]
[394383289,1763514638904,-522.0,0.00015119,2]
[394383290,1763514638914,-1193.0,0.00015119,2]
[394383291,1763514638924,-945.0,0.00015119,2]
[394383292,1763514638933,-606.0,0.00015119,2]
[394383293,1763514638943,-606.0,0.00015119,2]
[394383294,1763514638952,-522.0,0.00015147,2]
[394383295,1763514638962,-1193.0,0.00015147,2]
[394383296,1763514638972,-945.0,0.00015147,2]
[394383297,1763514638982,-606.0,0.00015147,2]
[394383298,1763514638992,-522.0,0.00015174,2]
[394383299,1763514639002,-1193.0,0.00015174,2]
[394383300,1763514639011,-945.0,0.00015174,2]
[394383301,1763514639021,-606.0,0.00015174,2]
[394383302,1763514639031,-522.0,0.00015201,2]
[394383303,1763514639041,-1193.0,0.00015201,2]
[394383304,1763514639051,-606.0,0.00015201,2]
[394383305,1763514639062,-2174.47456584,0.0001522,2]
[394383306,1763514639073,-522.0,0.00015229,2]
[394383307,1763514639083,-1193.0,0.00015229,2]
[394383308,1763514639092,-606.0,0.00015229,2]
[394383309,1763514639102,-522.0,0.00015256,2]
[394383310,1763514639112,-1193.0,0.00015256,2]
[394383311,1763514639122,-606.0,0.00015256,2]
[394383312,1763514639132,-522.0,0.00015284,2]
[394383313,1763514639142,-1193.0,0.00015284,2]
[394383314,1763514639153,-606.0,0.00015284,2]
[394383315,1763514639163,-522.0,0.00015311,2]
[394383316,1763514639172,-522.0,0.00015338,2]
[394383317,1763514639183,-735.74,0.00015348,2]
[394383318,1763514639193,-522.0,0.00015366,2]
[394383319,1763514639203,-522.0,0.00015393,2]
[394383320,1763514639213,-217.15233878,0.00015393,2]
[394383321,1763514639222,-2251.29259707,0.00015394,2]
[394383322,1763514639231,-151.0,0.000154,2]
[394383323,1763514639241,-151.0,0.000154,2]
[394383324,1763514639251,-500.0,0.000154,2]
[394383326,1763514639262,-2513.74546848,0.00015415,2]
[394383327,1763514639271,-3927.7272945,0.00015415,2]
[394383328,1763514639280,-443.59333055,0.00015415,2]
[394383329,1763514639290,-522.0,0.00015421,2]
[394383330,1763514639300,-396.60399173,0.00015448,2]
[394383331,1763514639309,-1000.0,0.00015448,2]
[394383332,1763514639319,-522.0,0.00015448,2]
[394383333,1763514639328,-1000.0,0.00015448,2]
[394383334,1763514639338,-1000.0,0.00015448,2]
[394383335,1763514639347,-412.65030203,0.00015448,2]
[394383336,1763514639356,-1000.0,0.00015448,2]
[394383337,1763514639365,-1000.0,0.00015448,2]
[394383338,1763514639375,-1000.0,0.00015448,2]
[394383339,1763514639384,-522.0,0.00015475,2]
[394383340,1763514639393,-151.0,0.000155,2]
[394383341,1763514639403,-151.0,0.000155,2]
[394383342,1763514639416,-522.0,0.00015503,2]
[394383343,1763514639426,-537.26166,0.0001553,2]
[394383344,1763514639434,-1021.17956697,0.00015535,2]
[394383345,1763514639444,-1000.0,0.00015535,2]
[394383346,1763514639453,-506.37112499,0.00015548,2]
[394383347,1763514639464,-500.0,0.00015548,2]
[394383348,1763514639473,-151.0,0.000156,2]
[394383349,1763514639483,-151.0,0.000156,2]
[394383350,1763514639493,-151.0,0.000156,2]
[394383351,1763514639503,-1000.0,0.00015623,2]
[394383352,1763514639512,-1000.0,0.00015623,2]
[394383353,1763514639521,-1000.0,0.00015623,2]
[394383354,1763514639531,-1000.0,0.00015623,2]
[394383355,1763514639540,-1000.0,0.00015623,2]
[394383356,1763514639549,-1003.96842319,0.00015623,2]
[394383357,1763514639558,-1000.0,0.00015623,2]
[394383358,1763514639567,-250.0,0.00015666,2]